Cogmind - Beta 14 *** ADVENTURER MODE // 2024.09.22 @ 20:43:43 Player: Wisdomtree Result: Destroyed by 76-OVO(R) with Subdweller Beam Cannon Performance ------------- Evolutions (0) 0 Regions Visited (3) 600 Robots Destroyed (36) 180 Value Destroyed (807) 807 Prototype IDs (11) 220 Alien Tech Used (0) 0 Bonus (0) 0 TOTAL SCORE: 1807 Bonus ------- None Cogmind --------- Core Integrity 0/250 Matter 300/300 Energy 100/100 System Corruption 0% Temperature Cool (9) Movement Core (700) Ox13 Location -10/Subcaves Parts ------- > --- POWER (1) -------- (None) > --- PROPULSION (2) --- (None) > --- UTILITY (2) ------ High-capacity Storage Unit > --- WEAPON (2) ------- (None) > --- INVENTORY (20) --- Subdweller Power Source Improved Heat Sink Small Storage Unit High-capacity Battery (250) Terrain Scanner Terrain Scanner Scrap Shield Light Assault Rifle Light Assault Rifle Subdweller Machine Gun Grenade Launcher Grenade Launcher Grenade Launcher Makeshift Hammer Mining Claw Peak State ------------ > --- POWER ------------ Light Ion Engine > --- PROPULSION ------- Light Treads Light Treads > --- UTILITY ---------- High-capacity Storage Unit > --- WEAPON ----------- Beamcaster Subdweller Machine Gun > --- INVENTORY -------- Ion Engine Ion Engine Subdweller Power Source Light Treads Improved Heat Sink Small Storage Unit High-capacity Battery Terrain Scanner Terrain Scanner Scrap Shield Beamcaster Light Assault Rifle Light Assault Rifle Subdweller Machine Gun Grenade Launcher Grenade Launcher Grenade Launcher Makeshift Hammer Mining Claw [Rating: 14] Favorites ----------- Power Ion Engine Engine Ion Engine Propulsion Light Treads Treads Light Treads Utility High-capacity Storage Unit Device Terrain Scanner Storage High-capacity Storage Unit Processor Signal Interpreter Weapon Assault Rifle Energy Gun EM Pulse Gun Ballistic Gun Assault Rifle Special Melee Weapon Dirty Datajack Build | -11 -10 -10 -10 ------- Run | Yrd Mat Min Sub Slots Evolved . | . . . . Power . | . . . . Propulsion . | . . . . Utility . | . . . . Weapon . | . . . . Parts Attached 26 | 7 6 . 13 Power 4 | 1 . . 3 Engine 4 | 1 . . 3 Core . | . . . . Reactor . | . . . . Propulsion 4 | 2 . . 2 Treads 4 | 2 . . 2 Leg . | . . . . Wheel . | . . . . Hover . | . . . . Flight . | . . . . Utility 5 | 1 4 . . Device 1 | . 1 . . Storage 3 | 1 2 . . Processor 1 | . 1 . . Hackware . | . . . . Protection . | . . . . Artifact . | . . . . Weapon 13 | 3 2 . 8 Energy Gun 4 | . 2 . 2 Energy Cannon . | . . . . Ballistic Gun 8 | 3 . . 5 Ballistic Cannon . | . . . . Launcher . | . . . . Special Weapon . | . . . . Impact Weapon . | . . . . Slashing Weapon . | . . . . Piercing Weapon . | . . . . Special Melee Weapon 1 | . . . 1 Unidentified Prototypes . | . . . . Parts Lost 14 | . . . 14 Power 3 | . . . 3 Propulsion 4 | . . . 4 Utility 1 | . . . 1 Weapon 6 | . . . 6 Highest Loss Streak 4 | . . . 4 To Critical Strikes . | . . . . Average Slot Usage (%) 92 | . 96 100 83 Engine 13 | . 14 14 13 Treads 27 | . 28 28 26 Device 6 | . 1 14 1 Storage 14 | . 19 14 14 Energy Gun 13 | . 10 14 13 Ballistic Gun 14 | . 17 14 14 Peak Build Rating 14 | 6 8 8 14 Average Rating 9 | 4 6 8 12 On Entrance 5 | . 6 8 8 Naked Turns . | . . . . Heaviest Build 54 | 13 53 50 54 Greatest Support 40 | 40 40 40 40 Greatest Overweight (x) 16 | . 1 1 16 Average Overweight (x) . | . . 1 1 Largest Inventory Capacity 20 | 8 20 20 20 Average Capacity 19 | 7 17 20 20 Most Carried 20 | 2 12 15 20 Average Carried 14 | 1 7 14 17 Final Capacity 20 | 8 20 20 20 Final Carried 16 | 2 12 15 16 Class Distribution -------------------- 100% | Mutant Dominant Class ---------------- Mutant | -10/Materials Mutant | -10/Mines Mutant | -10/Subcaves Resources | -11 -10 -10 -10 ----------- Run | Yrd Mat Min Sub Matter Collected 693 | 186 264 30 213 Remotely . | . . . . Salvage Created 1159 | . 513 187 459 Parts 79 | . 41 5 33 Haulers Intercepted 2 | . 2 . . Recyclers Shooed . | . . . . Parts Field Recycled . | . . . . Retrieved Matter . | . . . . Parts Self-Destructed 22 | . . . 22 Prevented . | . . . . Kills | -11 -10 -10 -10 ------- Run | Yrd Mat Min Sub Combat Hostiles Destroyed 26 | . 12 1 13 Guns 26 | . 12 1 13 Classes Destroyed 8 | . 5 1 2 Tunneler 1 | . 1 . . Hauler 2 | . 2 . . Recycler 2 | . . 2 . Turret 2 | . . . 2 Watcher 3 | . 3 . . Swarmer 12 | . 8 . 4 Grunt 5 | . 4 1 . Subdweller 9 | . . . 9 Best Kill Streak 4 | . 4 1 4 Combat Bots Only 4 | . 4 1 4 Max Kills in Single Turn 2 | . 2 1 1 Gunslinging 1 | . 1 . . Exploded . | . . . . Melee . | . . . . Uniques/NPCs Destroyed . | . . . . Combat | -11 -10 -10 -10 -------- Run | Yrd Mat Min Sub Hostile Shots Fired 206 | . 54 4 148 Missed 73 | . 17 2 54 Damage Taken 1690 | . 249 23 1418 Core 273 | . 32 . 241 Absorbed by Shields . | . . . . Ignored by Resistances 486 | . 80 7 399 Regen/Repaired (Parts) 27 | . 27 . . Core Remaining (%) 100 | 100 . . . Volleys Fired 103 | . 36 10 57 Largest 2 | . 2 2 2 Hottest 105 | . 60 60 105 Shots Fired 199 | . 72 20 107 Gun 199 | . 72 20 107 Cannon . | . . . . Launcher . | . . . . Special . | . . . . Kinetic 128 | . 48 10 70 Thermal 36 | . . . 36 Explosive . | . . . . Electromagnetic 35 | . 24 10 1 Robot Hit Streak 26 | . 19 13 26 Robot Miss Streak 3 | . 2 3 2 Penetration Max . | . . . . Secondary Targets 3 | . 2 . 1 Max Gunslinging Chain 1 | . 1 . 1 Shots Hit Robots 164 | . 57 15 92 Core Hits 57 | . 25 5 27 Critical Kills . | . . . . Critical Parts Destroyed . | . . . . Critical Strikes 2 | . . . 2 Burn 2 | . . . 2 Melee Attacks . | . . . . Impact . | . . . . Slashing . | . . . . Piercing . | . . . . Sneak Attacks . | . . . . Combat Hostiles . | . . . . Follow-up Attacks . | . . . . Damage Inflicted 2414 | . 747 196 1471 Guns 2380 | . 713 196 1471 Cannons . | . . . . Explosions 34 | . 34 . . Melee . | . . . . Ramming . | . . . . Kinetic 1432 | . 423 98 911 Thermal 582 | . 34 . 548 Explosive . | . . . . Electromagnetic 400 | . 290 98 12 Impact . | . . . . Slashing . | . . . . Piercing . | . . . . Highest Corruption . | . . . . Average Corruption . | . . . . Corruption Purged . | . . . . Corruption Blocked . | . . . . Overload Shots . | . . . . Overflow Damage . | . . . . Projectiles . | . . . . Explosions . | . . . . Melee . | . . . . Knockbacks . | . . . . Impact . | . . . . Kinetic . | . . . . Secondary . | . . . . Self-Inflicted Damage . | . . . . Shots . | . . . . Rammed . | . . . . Targets Rammed . | . . . . Kicked . | . . . . Crushed . | . . . . Highest Temperature 25 | . 18 18 25 Average Temperature 10 | . 14 15 6 Received Heat Transfer 465 | . 63 18 384 Siege Activations . | . . . . Robots Corrupted . | . . . . Combat Hostiles . | . . . . Parts Fried 1 | . 1 . . Impact Corruptions . | . . . . Robots Melted . | . . . . Combat Hostiles . | . . . . Parts Melted 2 | . . . 2 Heat Transferred 1160 | . 50 . 1110 Parts Sabotaged . | . . . . Parts Stolen . | . . . . Parts Stripped . | . . . . Power Chain Reactions 1 | . 1 . . Alert | -11 -10 -10 -10 ------- Run | Yrd Mat Min Sub Peak Influence 176 | . 176 40 . Initial 15 | . . 15 . Average 24 | . 69 6 . Maximum Alert Level . | . . . . Low Security (%) 100 | 100 100 100 . Level 1 . | . . . . Level 2 . | . . . . Level 3 . | . . . . Level 4 . | . . . . Level 5 . | . . . . High Security . | . . . . Max Security . | . . . . Squads Dispatched . | . . . . Investigation . | . . . . Extermination . | . . . . Reinforcement . | . . . . Assault . | . . . . Garrison . | . . . . Intercept . | . . . . Searches Triggered . | . . . . Construction Impeded . | . . . . Haulers Reinforced . | . . . . Active Scanning Responses . | . . . . Cargo Convoy Interrupts . | . . . . Stealth | -11 -10 -10 -10 --------- Run | Yrd Mat Min Sub Distress Signals 2 | . 2 . . Communications Jammed . | . . . . Distress Signals . | . . . . Times Spotted 47 | . 22 1 24 Peak Tracking Total 8 | . 8 1 5 Tactical Retreats 5 | . 3 . 2 Traps | -11 -10 -10 -10 ------- Run | Yrd Mat Min Sub Traps Triggered 1 | . . . 1 Indirectly . | . . . . Trap Hack Attempts . | . . . . Triggered . | . . . . Disarmed . | . . . . Reprogrammed . | . . . . Reused . | . . . . Traps Extracted . | . . . . Installed . | . . . . Triggered . | . . . . Machines | -11 -10 -10 -10 ---------- Run | Yrd Mat Min Sub Machines Disabled . | . . . . Max in Single Turn . | . . . . Machines Repaired . | . . . . Machines Dismantled . | . . . . Machines Sabotaged . | . . . . Overloaded Fab Kills . | . . . . Hacking | -11 -10 -10 -10 --------- Run | Yrd Mat Min Sub Machines Accessed 10 | . 8 1 1 Terminals 8 | . 7 1 . Fabricators . | . . . . Repair Stations 1 | . 1 . . Recycling Units . | . . . . Scanalyzers . | . . . . Garrison Access . | . . . . Total Hacks 39 | . 27 3 9 Successful 21 | . 11 1 9 Failed 18 | . 16 2 . Catastrophic 8 | . 6 2 . Database Lockouts . | . . . . Manual 22 | . 14 2 6 Terminals 28 | . 25 3 . Fabricators . | . . . . Repair Stations 2 | . 2 . . Recycling Units . | . . . . Scanalyzers . | . . . . Garrison Access . | . . . . Terminal Hacks 19 | . 9 1 9 Record 8 | . . . 8 Robot Analysis 1 | . 1 . . Branch Access Points 1 | . 1 . . Emergency Access Points 1 | . 1 . . Terminal Index 1 | . 1 . . Unreport Threat 1 | . 1 . . Locate Traps 2 | . 2 . . Recall Reinforcements 1 | . 1 . . Zone Layout 2 | . 1 1 . Derelict Proto ID Bank 1 | . . . 1 Fabricator Hacks . | . . . . Repair Station Hacks 2 | . 2 . . Scan Component 1 | . 1 . . Repair 1 | . 1 . . Recycling Unit Hacks . | . . . . Scanalyzer . | . . . . Garrison Access Hacks . | . . . . Unauthorized Hacks . | . . . . Terminals . | . . . . Fabricators . | . . . . Repair Stations . | . . . . Recycling Units . | . . . . Scanalyzers . | . . . . Garrison Access . | . . . . Data Cores Recovered . | . . . . Used . | . . . . Hacking Detections 9 | . 8 1 . Full Trace Events . | . . . . Feedback Events . | . . . . Feedback Blocked . | . . . . Robot Schematics Acquired . | . . . . Robots Built . | . . . . Authchips . | . . . . Time . | . . . . Total Robot Build Rating . | . . . . Part Schematics Acquired . | . . . . Parts Built . | . . . . Authchips . | . . . . Time . | . . . . Total Part Build Rating . | . . . . Parts Repaired 1 | . 1 . . Time 26 | . 26 . . Parts Recycled . | . . . . Recycled Matter . | . . . . Retrieved Matter . | . . . . Retrieved Components . | . . . . Parts Scanalyzed . | . . . . Part Schematics Acquired . | . . . . Parts Damaged . | . . . . Bothacking | -11 -10 -10 -10 ------------ Run | Yrd Mat Min Sub Used RIF Installer . | . . . . Robots Hacked . | . . . . Non-combat . | . . . . Combat . | . . . . Robot Hacks Applied . | . . . . Relay Couplers Released . | . . . . Fabnet Peak Effective % . | . . . . Robots Rewired . | . . . . Allies Hacked . | . . . . Hacks Repelled . | . . . . Allies | -11 -10 -10 -10 -------- Run | Yrd Mat Min Sub Total Allies 1 | . . 1 . Largest Group 1 | . . 1 . Highest-Rated Group 31 | . . 31 . Highest-Rated Ally 31 | . . 31 . Total Orders . | . . . . Ally Attacks 9 | . . 9 . Total Damage 125 | . . 125 . Kills . | . . . . Allies Corrupted . | . . . . Allies Melted . | . . . . Intel | -11 -10 -10 -10 ------- Run | Yrd Mat Min Sub Robot Analysis Total 1 | . 1 . . Derelict Logs Recovered 4 | . . 1 3 Drone Launches . | . . . . Drone Recoveries . | . . . . Exploration | -11 -10 -10 -10 ------------- Run | Yrd Mat Min Sub Turns Passed 8599 | 52 1409 3275 3863 Spaces Moved 3417 | 28 567 1343 1479 Core 4 | 3 . . 1 Treads 3413 | 25 567 1343 1478 Legs . | . . . . Wheels . | . . . . Hover . | . . . . Flight . | . . . . Fastest Speed 50 | 50 160 240 240 Average Speed 239 | 148 219 240 247 Slowest Speed 850 | 160 240 240 850 Overloaded Moves . | . . . . Propulsion Burnouts . | . . . . Robots Hopped . | . . . . Cave-ins Triggered . | . . . . Exploration Rate (%) 72 | 4 98 100 87 Regions Visited 3 Branch Regions 2 Pre-discovered Areas 2 | . . 1 1 Known Exits Taken 1 | . 1 . . Unknown Exits Taken 2 | 1 . 1 . Scrap Searched 5 | . . 2 3 Spaces Dug . | . . . . Terrain Destroyed 2 | . 2 . . Melee . | . . . . Projectile . | . . . . AOE 2 | . 2 . . Terrain Rammed . | . . . . Walls Destroyed . | . . . . Machines Disabled . | . . . . Actions | -11 -10 -10 -10 --------- Run | Yrd Mat Min Sub Total 3649 | 36 664 1376 1573 Wait 71 | . 41 21 9 Move 3414 | 27 566 1342 1479 Hop . | . . . . Pick Up 20 | 1 9 3 7 Fast Attach 15 | 7 6 . 2 Attach 9 | . . . 9 Detach 8 | 1 4 . 3 Swap 2 | . . . 2 Drop 3 | . 2 . 1 Fire 103 | . 36 10 57 Melee . | . . . . Ram . | . . . . Kick . | . . . . Crush . | . . . . Escape Stasis . | . . . . Rewire 4 | . . . 4 Trap . | . . . . Miscellaneous . | . . . . Route ------- -11/Scrapyard -10/Materials (discovered 5 exits: [*Mat x3] / *Min x2) -10/Mines (discovered 3 exits: [*Mat x2] / *Sub) -10/Subcaves (discovered 3 exits: [*Mat x2] / [*Rec]) History --------- Turn | Location | Event 28 | -11/Scrapyard | Discovered new exit (range 15) 53 | -11/Scrapyard | Entered Materials 253 | -10/Materials | Discovered new exit (range 4) 301 | -10/Materials | Build established: Mutant 420 | -10/Materials | Discovered new exit (range 16) 559 | -10/Materials | Identified exit to Mines 866 | -10/Materials | Discovered new exit (range 15) 1333 | -10/Materials | Repaired EM Pulse Gun 1373 | -10/Materials | Discovered new exit (range 7) 1462 | -10/Materials | Entered Mines 1655 | -10/Mines | Received a Mining Laser from a helpful Derelict 1780 | -10/Mines | Discovered new exit (range 8) 2383 | -10/Mines | Discovered new exit (range 5) 3157 | -10/Mines | Discovered new exit (range 6) 4737 | -10/Mines | Entered Subcaves 5001 | -10/Subcaves | Ambushed by swarm of Subdwellers 5058 | -10/Subcaves | Lost 4 allies 5076 | -10/Subcaves | Lost 3 parts (3w) 5148 | -10/Subcaves | A swath of the cavern ceiling suddenly collapsed 5568 | -10/Subcaves | Learned 2 Materials zone layouts 6628 | -10/Subcaves | A swath of the cavern ceiling suddenly collapsed 6946 | -10/Subcaves | Learned Materials security intel 6951 | -10/Subcaves | Visited 4L-MR0's lab 7130 | -10/Subcaves | Learned location of Storage (-7) 7135 | -10/Subcaves | Discovered new exit (range 10) 7160 | -10/Subcaves | Core integrity fell below 50% 7827 | -10/Subcaves | Discovered new exit (range 14) 8116 | -10/Subcaves | Lost 3 parts (1p2n) 8205 | -10/Subcaves | Core integrity fell below 20% 8461 | -10/Subcaves | Discovered new exit (range 4) 8600 | -10/Subcaves | Destroyed by 76-OVO(R) with Subdweller Beam Cannon Last Messages --------------- down. 08216_ CP-OVD(u) builds Twisted Machinery. 08219_ Destroyed Scrap Shield. 08222_ 05-F6P(R) suffers critical hit (Burn). 08222_ 05-F6P(R) destroyed. 08223_ CP-OVD(u) builds Twisted Machinery. 08227_ CP-OVD(u) deconstructs Twisted Machinery. 08232_ Subatomizers dissect the Sub. Beam Cannon. 08233_ CP-OVD(u) deconstructs Twisted Machinery. 08237_ Acquired 49 matter. 08244_ Acquired 12 matter. 08424_ Subatomizers dissect the Sub. Beam Cannon, destroying it. 08461_ EXIT=FOUND 08589_ Beamcaster destroyed. 08591_ Lgt. Treads destroyed. 08593_ Ion Engine destroyed. 08597_ Sub. Machine Gun destroyed. Map ----- +----------------------------------------------------+ | ?????????????????????????????????????????????????? | | ?????????????????????????????????????????????????? | | ?????????????????????????????????????????????????? | | ?????????????????????????#???????????????????????? | | ????????????????????????# ???????????????????????? | | ????????????????????????# ???????????????????????? | | ???????????????? ???????# ??????????????????????? | | ??????????????? ?????? ??????????????????????? | | ???????????????? ?????? ??????????????????????? | | ????????????????? ????? ??????????????????????? | | ?????????????????? #???? ??????????????????????? | | ??????????????????? ??? ??#####???????????????? | | ???????????????????? ???? ## #???????????????? | | ????????????????????? ??? ????????????????? | | ?????????????????????# ??? #?????????????????? | | ????????????????????## ?? #??????????????????? | | ??????????????????### #?# #???????????????????? | | ??????????????????? ## #???????????????????? | | ???????????????????????## R #???????????????????? | | ######???#"" ??????????# R ##???????????????????? | | "" #???# ""?####?????## ##????????????????????? | | " ??# "## ##?????# #????###?????????????? | | "" ? ??# """"" ##????# #????# ##????????????? | | " ???# ??#" "" ##??## #???## #????????????? | | ##???# #???# " ####; ##### ##???????????? | | ""#???#" #### " ###@ ## ##??????????? | | "#?????# "" ## #??????????? | | "#?????# ## < # #??????????? | | ##????## "#### ##??????????? | | #####?## ######??## ###### ##???????????? | | "" ##?#" #????????## ##????####????????????? | | =!!% ### "#?????????######?????????????????????? | | * [## ##???????????????????????????????????? | | ##### #???????????????????????????????????? | | ##??## #???????????????????????????????????? | | #???# #####???????????????????????????????????? | | #??## #####???????????????????????????????????? | | #### ## #???????????????????????????????????? | | # ###?????????????????????????????????? | | ## #?????????????????????????????????? | | ## # #?????????????????????????????????? | | ### #### ##?????????????????????????????????? | | ### ### #?????????????????????????????????? | | ## #?????????????????????????????????? | | ###?????????????????????????????????? | | # #???????????????????????????????????? | | # ###???????????????????????????????????? | | ##########?????????????????????????????????????? | | ###??????????????????????????????????????????????? | | ?????????????????????????????????????????????????? | +----------------------------------------------------+ Best States ------------- Heat Dissipation 25 Energy Generation 10 Energy Capacity 500 Matter Stores 300 Matter Capacity 300 Sight Range 16 Terrain Scan Range 14 Terrain Scan Density 10 Resistance: KI 20 Resistance: TH 20 Resistance: EX 20 Resistance: EM 20 Resistance: I 20 Resistance: S 20 Resistance: P 20 Evasion (%) 40 Recoil Reduction 2 Offensive Hacking 10 Item Schematics ----------------- None Robot Schematics ------------------ None Fabricated ------------ Nothing Alien Tech Used ----------------- None Achievements -------------- None Challenges ------------ None Game ------ Seed NavigationTowerPropulsion Manual? 0 Play Time 00:49:22 Cumulative 32.0 hours Start 2024.09.22 @ 19:52:29 End 2024.09.22 @ 20:43:43 Sessions 1 Manual Loads 0 Difficulty Adventurer Special Mode None Game No. 14 Rogue 1 Adventurer 2 Explorer 11 Win Type - Total 0 Types 0/0/0/0/0/0/0/0/0 Lore% 15 Gallery% 21 Achievement% 23 Wizard Run 0 Options --------- Layout 1 ASCII 0 Keyboard 1 Movement Numpad Keybinds 0 Fullscreen 1 Font 32/SmallcapsGlow Map View 50x40 Zoom Use 0% Tactical HUD 1 Map Filters NONE Filters NONE Steam 1 RUN: 189dab59-77f2-4ca3-b2a4-8218ca1e3a13